bitfinex-derivatives/quotes_SOLF0:USTF0_20241230
["timestamp","ask_amount","ask_price","bid_price","bid_amount"]
[1735560011925,4.5932,193.65,193.56,8.64135903]
[1735560012219,8.20037768,193.61,193.57,8.64135903]
[1735560012417,2.5876,193.59,193.53,10.78857768]
[1735560012617,2.5876,193.59,193.54,8.64363249]
[1735560012817,2.5876,193.59,193.55,8.64363249]
[1735560013017,2.5873,193.61,193.56,11.23143249]
[1735560013222,8.20037768,193.63,193.57,16.84401017]
[1735560013418,8.20037768,193.63,193.58,8.64363249]
[1735560013617,8.20037768,193.63,193.59,8.64363249]
[1735560013818,8.20037768,193.63,193.57,8.20037768]
[1735560014023,8.20037768,193.63,193.58,8.64160593]
[1735560014224,8.74793642,193.74,193.59,19.42938361]
[1735560014225,2.5868,193.64,193.59,19.42938361]
[1735560014521,8.20037768,193.67,193.6,8.63795963]
[1735560014830,2.5866,193.66,193.61,8.20037768]
[1735560015317,10.78677768,193.67,193.62,11.22264446]
[1735560015518,10.78677768,193.67,193.62,2.587]
[1735560016230,10.78677768,193.67,193.63,8.63511407]
[1735560016527,2.5863,193.68,193.63,10.78727768]
[1735560016724,8.20037768,193.67,193.61,8.20037768]
[1735560017032,8.20037768,193.67,193.6,1.4715]
[1735560017227,8.20037768,193.67,193.61,8.63591668]
[1735560017427,8.20037768,193.67,193.6,1.4715]
[1735560017428,8.20037768,193.67,193.62,8.63591668]
[1735560017625,2.5868,193.65,193.6,1.4715]
[1735560017929,8.20037768,193.67,193.61,8.63549126]
[1735560018121,2.5867,193.65,193.62,8.63549126]
[1735560018321,2.5867,193.65,193.6,1.4715]
[1735560018531,8.20037768,193.65,193.61,8.6277771]
[1735560018729,8.20037768,193.63,193.57,8.20037768]
[1735560019029,8.20037768,193.63,193.58,8.62850771]
[1735560019224,2.5872,193.61,193.59,8.62850771]
[1735560019426,2.5872,193.61,193.57,10.78807768]
[1735560019626,2.5872,193.61,193.58,8.63018074]
[1735560019921,2.5873,193.6,193.59,8.63018074]
[1735560020128,3.0,193.69,193.54,11.24927768]
[1735560020129,8.20037768,193.61,193.54,11.24927768]
[1735560020327,8.20037768,193.61,193.55,8.63590983]
[1735560020526,8.20037768,193.61,193.56,8.63590983]
[1735560020831,8.20037768,193.61,193.57,8.63590983]
[1735560021032,8.20037768,193.61,193.58,8.63590983]
[1735560021227,8.20037768,193.61,193.54,11.24927768]
[1735560021422,2.5875,193.59,193.55,11.2249994]
[1735560021628,2.5875,193.59,193.56,8.6370994]
[1735560021925,2.5875,193.59,193.57,8.6370994]
[1735560022134,2.5875,193.59,193.58,8.6370994]
[1735560022326,10.78787768,193.59,193.58,8.6370994]
[1735560022527,8.20037768,193.59,193.51,8.20037768]
[1735560022737,11.20037768,193.59,193.52,8.64073645]
[1735560022927,11.20037768,193.59,193.53,8.64073645]
[1735560023232,11.20037768,193.59,193.54,8.64073645]
[1735560023431,2.5879,193.56,193.55,8.64073645]
[1735560023631,2.5879,193.56,193.55,8.64079277]
[1735560024023,2.5879,193.56,193.55,4.55823895]
[1735560024223,2.5879,193.56,193.55,8.64078858]
[1735560024429,2.5879,193.56,193.51,8.20037768]
[1735560024734,2.5879,193.56,193.52,8.64060865]
[1735560024931,11.20037768,193.59,193.53,8.64060865]
[1735560025232,2.5876,193.58,193.54,8.64060865]
[1735560025433,14.53384531,193.63,193.55,16.84098633]
[1735560025627,14.53384531,193.63,193.55,8.20037768]
[1735560025824,14.53384531,193.63,193.56,2.5877]
[1735560025825,2.5872,193.61,193.56,2.5877]
[1735560026028,14.53384531,193.63,193.56,2.5877]
[1735560026429,14.53384531,193.63,193.57,8.20037768]
[1735560026430,3.33346763,193.63,193.57,8.20037768]
[1735560026827,3.33346763,193.63,193.59,8.20037768]
[1735560028330,8.20037768,193.67,193.59,8.20037768]
[1735560028734,2.5866,193.65,193.6,11.22316663]
[1735560028936,2.5866,193.65,193.6,2.5872]
[1735560029832,2.5869,193.63,193.59,8.20037768]
[1735560030029,2.5869,193.63,193.58,2.5875]
[1735560030030,8.20037768,193.65,193.53,3.0]
[1735560030228,8.20037768,193.65,193.57,8.20037768]
[1735560030433,8.20037768,193.63,193.58,8.63625868]
[1735560030637,8.20037768,193.63,193.59,4.55579677]
[1735560030939,8.20037768,193.63,193.57,8.20037768]
[1735560031140,8.20037768,193.63,193.58,8.64130031]
[1735560031338,8.20037768,193.63,193.59,8.64130031]
[1735560031537,2.5871,193.62,193.57,10.78807768]
[1735560031730,2.5871,193.62,193.58,8.64286425]
[1735560031936,2.5871,193.62,193.59,8.64286425]
[1735560032133,2.5871,193.62,193.57,10.78807768]
[1735560032330,2.5871,193.62,193.58,8.6436331]
[1735560032537,2.5871,193.62,193.59,8.6436331]
[1735560032738,2.5871,193.62,193.57,10.78807768]
[1735560033036,2.5871,193.62,193.58,8.64331553]
[1735560033242,2.5871,193.62,193.57,10.78807768]
[1735560033437,2.5871,193.62,193.58,8.64611711]
[1735560033637,8.20037768,193.63,193.59,8.64611711]
[1735560033839,2.5872,193.61,193.57,10.78807768]
[1735560034141,2.5872,193.61,193.58,8.64569529]
[1735560034332,2.5872,193.61,193.59,8.64569529]
[1735560034536,2.5872,193.61,193.57,10.78807768]
[1735560034732,2.5872,193.61,193.58,8.64612125]
[1735560034931,2.5871,193.62,193.59,11.23352125]
[1735560035133,2.5871,193.62,193.59,2.5874]
[1735560035531,8.20037768,193.67,193.6,8.64442624]
[1735560035736,8.20037768,193.67,193.61,8.64405529]
[1735560035942,8.20037768,193.67,193.59,8.20037768]
[1735560036142,2.5867,193.65,193.6,11.23070863]
[1735560036337,2.5867,193.65,193.61,8.64340863]
[1735560036532,2.5867,193.65,193.59,8.20037768]
[1735560036738,2.5867,193.65,193.61,2.5872]
[1735560038837,2.5867,193.65,193.62,4.5548277]
[1735560039141,2.5867,193.65,193.61,2.5872]
[1735560039338,2.5867,193.65,193.58,3.0]
[1735560039640,8.20037768,193.65,193.59,8.63263539]
[1735560039837,8.20037768,193.65,193.57,8.20037768]
[1735560040042,2.587,193.63,193.58,11.22147866]
[1735560040240,2.587,193.63,193.59,8.63397866]
[1735560040432,2.5871,193.62,193.58,2.5876]
[1735560040740,8.20037768,193.61,193.55,4.5364]
[1735560041043,8.20037768,193.61,193.56,8.63442423]
[1735560041239,8.20037768,193.59,193.57,8.63442423]
[1735560041544,8.20037768,193.59,193.54,8.20037768]
[1735560041745,8.20037768,193.59,193.55,8.6329185]
[1735560041945,8.20037768,193.59,193.56,8.6329185]
[1735560042145,2.5876,193.58,193.54,10.78837768]
[1735560042344,8.20037768,193.59,193.55,8.63133193]
[1735560042545,8.20037768,193.59,193.56,8.63133193]
[1735560042748,8.20037768,193.59,193.54,8.20037768]
[1735560043045,8.20037768,193.61,193.55,8.63007459]
[1735560043245,8.20037768,193.61,193.56,8.63007459]
[1735560043442,8.20037768,193.61,193.57,8.63007459]
[1735560043652,8.20037768,193.61,193.54,8.20037768]
[1735560043847,8.20037768,193.61,193.55,8.62939727]
[1735560044146,8.20037768,193.61,193.56,8.62939727]
[1735560044347,10.78757768,193.61,193.57,8.62939727]
[1735560044543,3.0,193.64,193.58,8.62789926]
[1735560044544,8.20037768,193.63,193.58,8.62789926]
[1735560044847,8.20037768,193.63,193.59,8.62716954]
[1735560045047,10.78727768,193.63,193.58,2.5875]
[1735560045249,10.78727768,193.63,193.59,8.62765099]
[1735560045444,3.0,193.66,193.6,8.62982371]
[1735560045645,2.5868,193.64,193.59,2.5874]
[1735560045846,8.20037768,193.65,193.6,8.62976674]
[1735560046045,8.20037768,193.65,193.59,2.5874]
[1735560046351,8.20037768,193.65,193.6,8.63051435]
[1735560046548,8.20037768,193.65,193.59,2.5874]
[1735560046739,8.20037768,193.65,193.6,8.63075398]
[1735560046938,8.20037768,193.65,193.59,2.5874]
[1735560047143,4.6687,193.7,193.62,8.20037768]
[1735560047341,8.20037768,193.69,193.63,8.63278164]
[1735560047543,8.20037768,193.69,193.64,8.63278164]
[1735560047741,8.20037768,193.69,193.62,8.20037768]
[1735560047941,8.20037768,193.69,193.63,8.63206269]
[1735560048146,8.20037768,193.69,193.64,2.5866]
[1735560048550,8.20037768,193.69,193.64,10.78697768]
[1735560048745,14.53363702,193.71,193.64,10.78697768]
[1735560050651,3.33325934,193.71,193.64,8.20037768]
[1735560050853,8.20037768,193.72,193.66,8.20037768]
[1735560051751,8.20037768,193.72,193.68,2.5862]
[1735560052149,2.5856,193.73,193.68,2.5862]
[1735560052450,10.78597768,193.73,193.68,2.5862]
[1735560052851,10.78597768,193.73,193.66,8.20037768]
[1735560053150,10.78597768,193.73,193.67,2.5863]
[1735560053457,2.5859,193.71,193.66,8.20037768]
[1735560053851,10.78627768,193.71,193.65,2.5865]
[1735560054450,8.20037768,193.71,193.65,2.5865]
[1735560054650,2.586,193.7,193.65,2.5865]
[1735560055653,2.5861,193.69,193.65,2.5865]
[1735560057153,2.5864,193.67,193.63,5.5868]
[1735560057354,8.20037768,193.69,193.63,13.78717768]
[1735560057651,8.20037768,193.69,193.63,2.5868]
[1735560057855,8.20037768,193.69,193.63,10.78717768]
[1735560058252,2.5865,193.67,193.63,10.78717768]
[1735560058652,8.20037768,193.69,193.63,8.20037768]
[1735560058853,2.5866,193.66,193.63,8.20037768]
[1735560059359,2.5867,193.65,193.61,10.78757768]
[1735560059650,2.5867,193.65,193.61,2.5872]
[1735560059857,2.5867,193.65,193.62,4.54187516]
[1735560060051,2.5867,193.65,193.61,10.78757768]
[1735560060648,2.5867,193.65,193.61,8.20037768]
[1735560060853,10.78687768,193.67,193.62,2.587]
[1735560061060,2.5865,193.67,193.61,8.20037768]
[1735560061463,2.5865,193.67,193.63,2.5869]
[1735560062252,2.5862,193.69,193.63,8.20037768]
[1735560062458,2.5862,193.69,193.65,8.20037768]
[1735560062757,8.20037768,193.69,193.59,7.48]
[1735560062963,8.20037768,193.69,193.62,8.20037768]
[1735560063156,8.20037768,193.67,193.62,8.20037768]
[1735560063348,4.5639,193.76,193.6,8.20037768]
[1735560063660,8.20037768,193.74,193.67,8.20037768]
[1735560064054,2.5858,193.71,193.65,8.20037768]
[1735560064557,2.5858,193.71,193.67,2.5863]
[1735560064759,2.5858,193.71,193.65,8.20037768]
[1735560065159,10.78607768,193.72,193.68,2.5861]
[1735560065356,2.5857,193.72,193.68,2.5861]
[1735560065956,8.20037768,193.74,193.67,8.20037768]
[1735560066153,2.5858,193.71,193.67,10.78677768]
[1735560069261,8.20037768,193.74,193.67,8.20037768]
[1735560069662,8.20037768,193.78,193.71,8.20037768]
[1735560069863,2.5852,193.76,193.72,2.5857]
[1735560070062,2.5852,193.76,193.63,3.0]
[1735560070063,8.20037768,193.76,193.69,8.20037768]
[1735560070556,2.5856,193.73,193.69,8.20037768]
[1735560070757,11.20037768,193.74,193.67,8.20037768]
[1735560070962,2.5857,193.72,193.67,8.20037768]
[1735560071164,10.78607768,193.72,193.67,8.20037768]
[1735560073065,8.20037768,193.72,193.67,8.20037768]
[1735560073265,2.5859,193.71,193.67,8.20037768]
[1735560073460,2.5859,193.71,193.66,2.5864]
[1735560073657,8.20037768,193.72,193.66,8.20037768]
[1735560073862,8.20037768,193.7,193.64,2.5866]
[1735560074058,8.20037768,193.68,193.59,4.48]
[1735560074263,8.20037768,193.64,193.6,8.59902264]
[1735560074565,8.20037768,193.62,193.57,7.07278088]
[1735560074760,8.20037768,193.62,193.55,8.20037768]
[1735560074963,8.20037768,193.67,193.61,8.20037768]
[1735560075157,8.20037768,193.67,193.59,8.20037768]
[1735560075965,2.5865,193.66,193.59,10.78767768]
[1735560076964,2.5867,193.65,193.59,10.78767768]
[1735560077958,10.78687768,193.66,193.6,2.5872]
[1735560078163,10.78687768,193.66,193.61,4.54044446]
[1735560078363,10.78687768,193.66,193.6,2.5872]
[1735560079069,8.20037768,193.66,193.6,2.5872]
[1735560079368,2.5866,193.65,193.6,2.5872]
[1735560080066,2.5866,193.65,193.61,8.60787309]
[1735560080264,2.5866,193.65,193.6,2.5872]
[1735560080464,2.5866,193.65,193.61,8.60843731]
[1735560080663,1.4752,193.69,193.61,8.20037768]
[1735560080860,8.20037768,193.69,193.62,4.54113657]
[1735560081066,8.20037768,193.69,193.61,8.20037768]
[1735560081265,8.20037768,193.69,193.62,4.54156563]
[1735560081466,8.20037768,193.69,193.61,8.20037768]
[1735560081666,8.20037768,193.69,193.62,8.61126458]
[1735560081865,8.20037768,193.69,193.61,8.20037768]
[1735560082068,8.20037768,193.69,193.63,8.20037768]
[1735560083363,8.20037768,193.7,193.63,8.20037768]
[1735560083571,2.5861,193.69,193.64,2.5867]
[1735560086570,2.5862,193.68,193.64,2.5867]
[1735560087971,8.20037768,193.7,193.63,8.20037768]
[1735560088270,2.5865,193.66,193.61,10.78747768]
[1735560088466,2.5865,193.66,193.62,8.61919132]
[1735560088672,2.5865,193.66,193.61,10.78747768]
[1735560088870,2.5865,193.66,193.62,8.61936381]
[1735560089074,8.20037768,193.68,193.61,10.78747768]
[1735560089277,2.5867,193.65,193.62,8.62208606]
[1735560089474,2.5867,193.65,193.63,4.54832726]
[1735560089676,2.5867,193.65,193.61,10.78747768]
[1735560089975,2.5867,193.65,193.62,8.62425759]
[1735560090169,2.5867,193.65,193.63,8.62425759]
[1735560090369,2.5867,193.65,193.61,10.78747768]
[1735560090573,2.5867,193.65,193.62,8.62552879]
[1735560090772,2.5867,193.65,193.63,8.62552879]
[1735560090974,2.5867,193.65,193.61,10.78747768]
[1735560091175,2.5867,193.65,193.62,8.62574206]
[1735560091377,2.5867,193.65,193.63,8.62574206]
[1735560091571,2.5865,193.66,193.64,4.55043211]
[1735560091775,2.5865,193.66,193.63,2.5869]
[1735560091971,2.5865,193.66,193.64,4.55044866]
[1735560092171,2.5865,193.66,193.63,2.5869]
[1735560092373,2.5865,193.66,193.64,8.6257607]
[1735560092572,2.5865,193.66,193.63,2.5869]
[1735560092776,2.5865,193.66,193.64,8.62577578]
[1735560092976,2.5865,193.66,193.63,2.5869]
[1735560093170,3.0,193.72,193.64,8.62575166]
[1735560093371,2.5862,193.69,193.65,2.5866]
[1735560094077,8.20037768,193.7,193.65,2.5866]
[1735560094377,2.5863,193.68,193.65,2.5866]
[1735560095182,2.5865,193.67,193.63,2.5869]
[1735560095383,8.20037768,193.68,193.64,8.62554272]
[1735560095584,2.5867,193.65,193.62,2.587]
[1735560095877,2.5867,193.65,193.63,8.62604304]
[1735560096078,2.5867,193.65,193.61,8.20037768]
[1735560096282,2.5867,193.65,193.62,8.62689645]
[1735560096478,2.5867,193.65,193.63,4.55087142]
[1735560096677,2.5867,193.65,193.61,8.20037768]
[1735560096880,2.5867,193.65,193.62,8.62736096]
[1735560097079,2.5867,193.65,193.63,4.55111682]
[1735560097282,2.5867,193.65,193.61,10.78747768]
[1735560097478,2.5867,193.65,193.62,8.62836397]
[1735560097674,2.5867,193.65,193.63,8.62836397]
[1735560097877,2.5867,193.65,193.61,10.78747768]
[1735560098086,2.5867,193.65,193.62,8.63053602]
[1735560098383,2.5867,193.65,193.63,8.63053602]
[1735560098582,2.5867,193.65,193.61,10.78747768]
[1735560098881,2.5867,193.65,193.62,8.63097672]
[1735560099080,2.5867,193.65,193.63,8.63097672]
[1735560099281,2.5867,193.65,193.61,10.78747768]
[1735560099583,2.5865,193.66,193.62,11.21954535]
[1735560099882,2.5865,193.66,193.63,8.63254535]
[1735560100077,2.5865,193.66,193.62,2.587]
[1735560100283,2.5865,193.66,193.63,8.63590715]
[1735560100485,2.5861,193.69,193.65,2.5867]
[1735560101093,8.20037768,193.7,193.61,8.20037768]
[1735560101390,8.20037768,193.68,193.62,8.63787304]
[1735560101588,8.20037768,193.68,193.63,8.63787304]
[1735560101790,2.5866,193.66,193.61,10.78747768]
[1735560101989,8.20037768,193.68,193.62,8.63924708]
[1735560102192,8.20037768,193.68,193.63,8.63924708]
[1735560102489,2.5865,193.66,193.61,10.78747768]
[1735560102681,2.5865,193.66,193.62,8.6395842]
[1735560102883,2.5863,193.68,193.64,2.5868]
[1735560105196,8.20037768,193.66,193.57,9.76567768]
[1735560105494,2.5872,193.61,193.58,8.63947877]
[1735560105691,2.5872,193.61,193.59,8.63947877]
[1735560105896,2.5872,193.61,193.56,11.20468088]
[1735560106095,2.5872,193.61,193.57,8.64296932]
[1735560106291,2.5872,193.61,193.58,8.64296932]
[1735560106490,10.78747768,193.62,193.59,8.63969206]
[1735560106691,8.20037768,193.62,193.56,1.5441]
[1735560106890,8.20037768,193.62,193.57,8.63960742]
[1735560107093,8.20037768,193.62,193.58,8.63960742]
[1735560107294,8.20037768,193.62,193.59,4.55761523]
[1735560107490,8.20037768,193.62,193.6,8.63616601]
[1735560107694,3.0,193.68,193.57,8.20037768]
[1735560107695,8.20037768,193.64,193.57,8.20037768]
[1735560107896,8.20037768,193.64,193.58,8.63622627]
[1735560108196,2.5872,193.62,193.59,8.63622627]
[1735560108399,2.5872,193.62,193.57,10.78807768]
[1735560108593,2.5872,193.62,193.58,8.63299266]
[1735560108892,2.5872,193.62,193.59,8.63299266]
[1735560109097,2.5872,193.62,193.57,10.78807768]
[1735560109298,2.5872,193.62,193.58,8.62858265]
[1735560109498,2.5872,193.62,193.59,8.62858265]
[1735560109697,8.20037768,193.64,193.57,10.78807768]
[1735560109900,2.5872,193.61,193.58,8.62865489]
[1735560110196,2.5872,193.61,193.59,4.55182903]
[1735560110398,2.5872,193.61,193.57,10.78807768]
[1735560110601,2.5872,193.61,193.58,8.63000598]
[1735560110897,2.5872,193.61,193.57,10.78807768]
[1735560111099,2.5872,193.61,193.58,8.63361193]
[1735560111306,2.5872,193.61,193.57,10.78807768]
[1735560111493,2.5872,193.61,193.58,8.63298781]
[1735560111693,2.5872,193.61,193.57,10.78807768]
[1735560111902,2.5872,193.61,193.58,8.63366366]
[1735560112101,2.5872,193.61,193.57,10.78807768]
[1735560112306,2.5872,193.61,193.58,8.63280662]
[1735560112599,2.5872,193.61,193.57,10.78807768]
[1735560112799,2.5872,193.61,193.58,8.63219532]
[1735560112999,2.5872,193.61,193.57,10.78807768]
[1735560113200,2.5872,193.61,193.58,8.63220552]
[1735560113404,2.5872,193.61,193.57,10.78807768]
[1735560113604,2.5872,193.61,193.58,8.63179139]
[1735560113801,2.5872,193.61,193.57,10.78807768]
[1735560114001,2.5872,193.61,193.58,8.6319954]
[1735560114204,2.5872,193.61,193.57,10.78807768]
[1735560114400,2.5872,193.61,193.58,8.631335]
[1735560114702,2.5872,193.61,193.57,10.78807768]
[1735560114902,2.5872,193.61,193.58,8.63132575]
[1735560115104,2.5872,193.61,193.57,10.78807768]
[1735560115303,2.5872,193.61,193.58,8.63253335]
[1735560115500,2.5872,193.61,193.57,2.5877]
[1735560115701,2.5872,193.61,193.58,8.63253468]
[1735560116004,2.5872,193.61,193.57,2.5877]
[1735560116205,2.5872,193.61,193.58,8.63250197]
[1735560116394,2.5872,193.61,193.57,2.5877]
[1735560116595,2.5872,193.61,193.58,8.63327138]
[1735560116802,2.5872,193.61,193.57,2.5877]
[1735560117005,2.5872,193.61,193.58,8.63302544]
[1735560117198,2.5872,193.61,193.57,2.5877]
[1735560117399,2.5872,193.61,193.58,8.63392246]
[1735560117605,2.5872,193.61,193.57,2.5877]
[1735560117903,2.5872,193.61,193.58,8.63376901]
[1735560118105,2.5872,193.61,193.59,8.63376901]
[1735560118300,2.5872,193.61,193.57,2.5877]
[1735560118500,2.5872,193.61,193.58,8.63408303]
[1735560118695,2.5872,193.61,193.57,2.5877]
[1735560118905,2.5872,193.61,193.58,8.63461404]
[1735560119204,2.5872,193.61,193.57,2.5877]
[1735560119405,2.5872,193.61,193.58,8.63499101]
[1735560119605,2.5872,193.61,193.57,2.5877]
[1735560119904,2.5872,193.61,193.58,8.63496945]
[1735560120106,2.5872,193.61,193.57,2.5877]
[1735560120305,2.5872,193.61,193.58,8.63447843]
[1735560120507,2.5872,193.61,193.57,2.5877]
[1735560120704,2.5872,193.61,193.58,8.63456493]
[1735560121000,2.5872,193.61,193.57,2.5877]
[1735560121209,2.5872,193.61,193.58,8.63217959]
[1735560121505,8.20037768,193.64,193.56,12.33207768]
[1735560121708,8.20037768,193.64,193.57,8.63096289]
[1735560122007,2.5871,193.61,193.58,8.63096289]
[1735560122309,2.5871,193.61,193.56,12.33207768]
[1735560122506,2.5871,193.61,193.57,8.62680067]
[1735560122805,2.5871,193.61,193.58,8.62641662]
[1735560122997,2.5871,193.61,193.56,12.33207768]
[1735560123198,2.5871,193.61,193.57,8.62578073]
[1735560123405,2.5871,193.61,193.58,8.62578073]
[1735560123605,2.5871,193.61,193.56,12.33207768]
[1735560123907,2.5871,193.61,193.57,8.62498917]
[1735560124105,2.5871,193.61,193.58,8.62498917]
[1735560124307,2.5871,193.61,193.56,12.33207768]
[1735560124508,2.5871,193.61,193.57,8.62504331]
[1735560124709,8.20037768,193.62,193.58,8.62504331]
[1735560124908,8.20037768,193.62,193.54,9.68967768]
[1735560125208,8.20037768,193.62,193.55,8.62651685]
[1735560125403,2.5874,193.58,193.56,4.07579784]
[1735560125710,2.5874,193.58,193.54,9.68967768]
[1735560125911,2.5874,193.58,193.55,8.6258258]
[1735560126205,2.5874,193.58,193.56,8.6258258]
[1735560126405,8.20037768,193.62,193.54,9.68967768]
[1735560126602,8.20037768,193.62,193.56,8.20037768]
[1735560126799,8.20037768,193.62,193.57,8.6250831]
[1735560127010,8.20037768,193.62,193.56,8.20037768]
[1735560127312,2.5874,193.58,193.56,8.20037768]
[1735560127511,2.5874,193.58,193.54,12.27757768]
[1735560127706,2.5874,193.58,193.55,8.62461719]
[1735560127904,2.5874,193.58,193.56,8.62461719]
[1735560128107,2.5874,193.58,193.54,12.27757768]
[1735560128309,2.5874,193.58,193.55,8.62437085]
[1735560128607,2.5874,193.58,193.56,8.62437085]
[1735560128804,2.5874,193.58,193.54,12.27757768]
[1735560129007,2.5874,193.58,193.55,8.62743343]
[1735560129208,2.5874,193.58,193.56,8.62743343]
[1735560129409,2.5874,193.58,193.54,12.27757768]
[1735560129615,2.5874,193.58,193.55,8.62936011]
[1735560129816,2.5874,193.58,193.56,8.62936011]
[1735560130114,2.5874,193.58,193.54,12.27757768]
[1735560130305,2.5874,193.58,193.55,8.62984948]
[1735560130509,2.5874,193.58,193.56,8.62984948]
[1735560130711,2.5874,193.58,193.54,12.27757768]
[1735560131020,2.5874,193.58,193.55,8.62932785]
[1735560131214,2.5874,193.58,193.56,8.62932785]
[1735560131416,2.5874,193.58,193.55,8.20037768]
[1735560131716,2.5874,193.58,193.56,8.62938433]
[1735560131917,2.5874,193.58,193.55,8.20037768]
[1735560132106,2.5874,193.58,193.56,8.62939454]
[1735560132310,2.5874,193.58,193.55,8.20037768]
[1735560132516,2.5874,193.58,193.56,8.6297759]
[1735560132716,2.5874,193.58,193.55,8.20037768]
[1735560132916,2.5874,193.58,193.56,8.6297708]
[1735560133118,2.5874,193.58,193.55,8.20037768]
[1735560133316,2.5874,193.58,193.56,8.63040903]
[1735560133515,2.5874,193.58,193.55,8.20037768]
[1735560133712,8.20037768,193.62,193.56,8.63041256]
[1735560133912,8.20037768,193.6,193.51,53.90954538]
[1735560134117,8.20037768,193.6,193.52,16.83295305]
[1735560134316,8.20037768,193.6,193.53,8.63257537]
[1735560134516,8.20037768,193.6,193.54,4.07881488]
[1735560134717,8.20037768,193.6,193.52,10.78847768]
[1735560134916,8.20037768,193.6,193.53,8.63749945]
[1735560135220,8.20037768,193.58,193.51,7.74380101]
[1735560135421,8.20037768,193.58,193.52,8.63638088]
[1735560135718,8.20037768,193.58,193.53,8.63638088]
[1735560135918,8.20037768,193.58,193.51,7.74380101]
[1735560136119,8.20037768,193.58,193.52,8.63834237]
[1735560136318,8.20037768,193.56,193.51,5.15550101]
[1735560136515,8.20037768,193.56,193.48,8.20037768]
[1735560136711,8.20037768,193.56,193.49,8.63844145]
[1735560137018,2.5882,193.53,193.5,8.63844145]
[1735560137221,2.5882,193.53,193.51,4.55706302]
[1735560137413,2.5882,193.53,193.48,10.78897768]
[1735560137718,2.5882,193.53,193.49,8.63279612]
[1735560137913,2.5882,193.53,193.48,10.78897768]
[1735560138114,2.5882,193.53,193.49,8.63291586]
[1735560138314,2.5882,193.53,193.48,10.78897768]
[1735560138516,2.5882,193.53,193.49,8.62984726]
[1735560138820,2.5882,193.53,193.48,10.78897768]
[1735560139020,2.5882,193.53,193.49,8.62935609]
[1735560139222,2.5882,193.53,193.48,10.78897768]
[1735560139422,2.5882,193.53,193.49,8.62699397]
[1735560139616,2.5882,193.53,193.48,10.78897768]
[1735560139821,2.5882,193.53,193.49,8.62707728]
[1735560140020,2.5882,193.53,193.48,10.78897768]
[1735560140229,2.5882,193.53,193.49,8.62606463]
[1735560140411,2.5882,193.53,193.48,10.78897768]
[1735560140716,2.5882,193.53,193.49,8.62419295]
[1735560140922,2.5882,193.53,193.48,10.78897768]
[1735560141224,2.5882,193.53,193.49,8.62380883]
[1735560141415,2.5882,193.53,193.48,10.78897768]
[1735560141615,2.5882,193.53,193.49,8.62223305]
[1735560141815,2.5882,193.53,193.48,10.78897768]
[1735560142016,2.5882,193.53,193.49,8.62223305]
[1735560142212,2.5882,193.53,193.48,10.78897768]
[1735560144014,2.5882,193.52,193.48,10.78897768]
[1735560144920,173.073083,193.71,193.56,2.5876]
[1735560145115,8.20037768,193.65,193.59,8.20037768]
[1735560146025,3.0,193.67,193.59,8.20037768]
[1735560146221,8.20037768,193.67,193.61,8.20037768]
[1735560146420,3.33363783,193.68,193.63,8.20037768]
[1735560146821,3.33363783,193.68,193.63,10.78697768]
[1735560147220,3.33363783,193.68,193.63,8.20037768]
[1735560147727,5.91983783,193.68,193.63,8.20037768]
[1735560147914,11.53401551,193.68,193.61,8.20037768]
[1735560149424,5.91973783,193.68,193.62,2.5868]
[1735560150320,5.91973783,193.68,193.63,2.5866]
[1735560150523,3.33363783,193.68,193.63,8.20037768]
[1735560150725,2.5858,193.7,193.63,8.20037768]
[1735560151021,2.5858,193.7,193.64,2.5865]
[1735560151428,2.5858,193.7,193.65,8.20037768]
[1735560151624,8.20037768,193.71,193.66,2.5862]
[1735560153630,8.20037768,193.73,193.67,10.78647768]
[1735560154127,3.0,193.77,193.67,8.20037768]
[1735560154428,8.20037768,193.75,193.69,8.20037768]
[1735560154830,10.78557768,193.75,193.7,2.5858]
[1735560155218,10.78557768,193.75,193.69,8.20037768]
[1735560156127,3.0,193.79,193.67,3.0]
[1735560156128,8.20037768,193.73,193.67,3.0]
[1735560156324,8.20037768,193.71,193.63,15.74387768]
[1735560157130,8.20037768,193.67,193.56,28.29112354]
[1735560157330,8.20037768,193.67,193.57,13.15762843]
[1735560157525,2.5867,193.64,193.59,10.78757768]
[1735560158231,2.5867,193.64,193.59,8.20037768]
[1735560158527,8.20037768,193.69,193.63,8.20037768]
[1735560159127,3.0,193.71,193.63,8.20037768]
[1735560159331,11.20037768,193.71,193.63,8.20037768]
[1735560159629,11.20037768,193.71,193.65,8.20037768]
[1735560160032,11.20037768,193.71,193.65,10.78677768]